[Event "44th Chess Olympiad Open 2022"]
[Site "Chennai"]
[Date "2022.08.08"]
[Round "10.61"]
[White "Liu, Yeh Yang"]
[Black "Hamid Mohammed"]
[Result "1-0"]
[WhiteElo "1994"]
[BlackElo "2116"]
[Annotator "NA RC"]
[PlyCount "127"]
[EventDate "2022.??.??"]
[TimeControl "60"]

1. e4 {[%emt 0:00:03]} c6 {[%emt 0:01:00]} 2. d4 {[%emt 0:00:04]} d5 {[%emt 0:
00:00]} 3. Nc3 {[%emt 0:00:03]} dxe4 {[%emt 0:00:03]} 4. Nxe4 {[%emt 0:00:06]}
Nf6 {[%emt 0:00:12]} 5. Nxf6+ {[%emt 0:00:05]} exf6 {[%emt 0:00:08]} 6. Be3 {
[%emt 0:00:16]} Be6 {[%emt 0:00:16]} 7. Bd3 {[%emt 0:00:21]} Bd6 {[%emt 0:00:
00]} 8. Ne2 {[%emt 0:00:26]} Qc7 {[%emt 0:00:35]} 9. Qd2 {[%emt 0:00:02]} Nd7 {
[%emt 0:05:29]} 10. Bf4 {[%emt 0:00:30]} O-O {[%emt 0:07:54]} 11. O-O {[%emt 0:
00:00]} g6 {[%emt 0:06:40]} 12. c4 {[%emt 0:02:53]} Bxf4 {[%emt 0:03:23]} 13.
Nxf4 {[%emt 0:02:40]} Nb6 {[%emt 0:00:57]} 14. b3 {[%emt 0:07:41]} Kg7 {
[%emt 0:04:53]} 15. Rfe1 {[%emt 0:00:44]} Rae8 {[%emt 0:02:38]} 16. a4 {
[%emt 0:01:06]} Qd7 {[%emt 0:02:45]} 17. Be4 {[%emt 0:07:19]} Bf5 {[%emt 0:00:
00]} 18. Bf3 {[%emt 0:00:55]} Bg4 {[%emt 0:00:01]} 19. a5 {[%emt 0:07:25]} Nc8
{[%emt 0:04:26]} 20. Bxg4 {[%emt 0:00:24]} Qxg4 {[%emt 0:00:08]} 21. a6 {
[%emt 0:00:22]} Rxe1+ {[%emt 0:05:34]} 22. Rxe1 {[%emt 0:00:06]} bxa6 {[%emt 0:
00:00]} 23. h3 {[%emt 0:02:02]} Qf5 {[%emt 0:02:45]} 24. d5 {[%emt 0:07:58]}
Rd8 {[%emt 0:06:05]} 25. Qe3 {[%emt 0:00:14]} cxd5 {[%emt 0:19:17]} 26. Nxd5 {
[%emt 0:00:03]} Nb6 {[%emt 0:00:01]} 27. Nc7 {[%emt 0:11:28]} Qe5 {[%emt 0:00:
00]} 28. Qxe5 {[%emt 0:00:05]} fxe5 {[%emt 0:00:01]} 29. c5 {[%emt 0:00:07]}
Nc8 {[%emt 0:02:32]} 30. Rxe5 {[%emt 0:00:04]} Kf6 {[%emt 0:00:01]} 31. Re3 {
[%emt 0:00:01]} Ne7 {[%emt 0:01:44]} 32. Rf3+ {[%emt 0:00:55]} Kg7 {[%emt 0:00:
00]} 33. Nxa6 {[%emt 0:00:06]} Rd1+ {[%emt 0:00:24]} 34. Kh2 {[%emt 0:00:02]}
Nf5 {[%emt 0:00:38]} 35. Rc3 {[%emt 0:00:48]} Kf6 {[%emt 0:00:59]} 36. c6 {
[%emt 0:00:23]} Rd8 {[%emt 0:00:15]} 37. b4 {[%emt 0:09:46]} Rc8 {[%emt 0:00:
00]} 38. b5 {[%emt 0:00:14]} Nd6 {[%emt 0:00:13]} 39. Rb3 {[%emt 0:00:59]} Ke5
{[%emt 0:01:04]} 40. Rb4 {[%emt 0:03:17]} Kd5 {[%emt 0:00:38]} 41. f3 {[%emt 0:
00:00]} f5 {[%emt 0:02:07]} 42. Kg3 {[%emt 0:00:00]} g5 {[%emt 0:01:25]} 43. h4
{[%emt 0:00:00]} h6 {[%emt 0:00:06]} 44. Kf2 {[%emt 0:00:00]} Ne8 {[%emt 0:00:
00]} 45. Ke3 {[%emt 0:00:00]} Nc7 {[%emt 0:03:30]} 46. Rd4+ {[%emt 0:00:00]}
Ke6 {[%emt 0:00:03]} 47. Nxc7+ {[%emt 0:00:00]} Rxc7 {[%emt 0:00:10]} 48. h5 {
[%emt 0:00:00]} Rc8 {[%emt 0:01:15]} 49. Ra4 {[%emt 0:00:00]} Rc7 {[%emt 0:00:
00]} 50. Kd4 {[%emt 0:00:00]} Kd6 {[%emt 0:00:06]} 51. Ra2 {[%emt 0:00:00]} Re7
{[%emt 0:00:21]} 52. Kc4 {[%emt 0:00:00]} g4 {[%emt 0:00:19]} 53. Rd2+ {
[%emt 0:00:00]} Kc7 {[%emt 0:00:01]} 54. Rd5 {[%emt 0:00:00]} gxf3 {[%emt 0:00:
00]} 55. gxf3 {[%emt 0:00:00]} f4 {[%emt 0:00:06]} 56. Rf5 {[%emt 0:00:00]} Kb6
{[%emt 0:00:12]} 57. Kd5 {[%emt 0:00:00]} Re1 {[%emt 0:01:53]} 58. Kd6 {
[%emt 0:00:00]} Rd1+ {[%emt 0:00:08]} 59. Rd5 {[%emt 0:00:00]} Rc1 {[%emt 0:00:
00]} 60. Kd7 {[%emt 0:00:00]} Rc3 {[%emt 0:00:44]} 61. Rd6 {[%emt 0:00:00]} a5
{[%emt 0:01:08]} 62. bxa6 {[%emt 0:00:00]} Kxa6 {[%emt 0:00:07]} 63. Rd4 {
[%emt 0:00:00]} Rxf3 {[%emt 0:01:54]} 64. c7 {[%emt 0:00:00]} 1-0

[Event "44th Chess Olympiad Open 2022"]
[Site "Chennai"]
[Date "2022.08.08"]
[Round "10.61"]
[White "Abdelhakiem Abdellatief Nogda"]
[Black "Hsu, Hsuan-Ming"]
[Result "1/2-1/2"]
[WhiteElo "1960"]
[BlackElo "1900"]
[Annotator "NA RC"]
[PlyCount "184"]
[EventDate "2022.??.??"]
[TimeControl "60"]

1. e4 {[%emt 0:00:08]} e5 {[%emt 0:00:05]} 2. Nf3 {[%emt 0:00:07]} Nc6 {
[%emt 0:00:05]} 3. Bb5 {[%emt 0:00:18]} a6 {[%emt 0:00:05]} 4. Ba4 {[%emt 0:00:
00]} Nf6 {[%emt 0:00:09]} 5. O-O {[%emt 0:00:38]} Be7 {[%emt 0:00:14]} 6. Re1 {
[%emt 0:00:15]} b5 {[%emt 0:00:05]} 7. Bb3 {[%emt 0:00:20]} O-O {[%emt 0:00:08]
} 8. c3 {[%emt 0:00:09]} d5 {[%emt 0:02:13]} 9. d4 {[%emt 0:04:56]} Nxe4 {
[%emt 0:06:07]} 10. dxe5 {[%emt 0:01:49]} Be6 {[%emt 0:01:18]} 11. Be3 {
[%emt 0:02:57]} Na5 {[%emt 0:06:40]} 12. Nbd2 {[%emt 0:05:02]} Nxb3 {[%emt 0:
00:00]} 13. axb3 {[%emt 0:01:30]} Nxd2 {[%emt 0:04:09]} 14. Qxd2 {[%emt 0:00:
00]} c5 {[%emt 0:08:15]} 15. h3 {[%emt 0:03:58]} a5 {[%emt 0:14:10]} 16. Qc2 {
[%emt 0:08:30]} b4 {[%emt 0:11:26]} 17. Rad1 {[%emt 0:13:17]} Qc8 {[%emt 0:00:
00]} 18. Kh2 {[%emt 0:00:47]} Rb8 {[%emt 0:05:39]} 19. Ra1 {[%emt 0:03:27]} Bf5
{[%emt 0:10:40]} 20. Qd1 {[%emt 0:00:25]} Qd8 {[%emt 0:01:26]} 21. Bf4 {
[%emt 0:00:51]} Be6 {[%emt 0:00:29]} 22. Qc2 {[%emt 0:00:35]} Qb6 {[%emt 0:00:
00]} 23. Nd2 {[%emt 0:02:43]} bxc3 {[%emt 0:02:04]} 24. bxc3 {[%emt 0:00:20]}
d4 {[%emt 0:00:07]} 25. c4 {[%emt 0:00:42]} Rfd8 {[%emt 0:01:17]} 26. Qd3 {
[%emt 0:00:27]} Qb4 {[%emt 0:01:05]} 27. Rec1 {[%emt 0:00:25]} Ra8 {[%emt 0:00:
00]} 28. Ra4 {[%emt 0:00:24]} Qb6 {[%emt 0:00:12]} 29. Qg3 {[%emt 0:00:39]} Bd7
{[%emt 0:01:20]} 30. Raa1 {[%emt 0:00:55]} a4 {[%emt 0:00:44]} 31. bxa4 {
[%emt 0:00:16]} Bxa4 {[%emt 0:00:48]} 32. Rab1 {[%emt 0:00:13]} Qg6 {[%emt 0:
00:00]} 33. Qxg6 {[%emt 0:02:46]} hxg6 {[%emt 0:00:04]} 34. Rb7 {[%emt 0:00:18]
} Kf8 {[%emt 0:01:26]} 35. Rcb1 {[%emt 0:00:23]} Bc6 {[%emt 0:00:19]} 36. Rc7 {
[%emt 0:00:24]} Rdc8 {[%emt 0:00:18]} 37. Rxc8+ {[%emt 0:01:03]} Rxc8 {[%emt 0:
00:00]} 38. Rb6 {[%emt 0:00:47]} g5 {[%emt 0:00:40]} 39. Bg3 {[%emt 0:00:52]}
Ke8 {[%emt 0:01:10]} 40. Kg1 {[%emt 0:08:07]} Kd7 {[%emt 0:00:20]} 41. Ra6 {
[%emt 0:31:19]} Ra8 {[%emt 0:03:10]} 42. Rxa8 {[%emt 0:00:00]} Bxa8 {[%emt 0:
00:00]} 43. Kf1 {[%emt 0:00:00]} Bc6 {[%emt 0:01:45]} 44. f3 {[%emt 0:00:00]}
Ba4 {[%emt 0:06:14]} 45. Ke2 {[%emt 0:00:00]} Bc2 {[%emt 0:00:24]} 46. Nf1 {
[%emt 0:00:00]} Bd8 {[%emt 0:07:10]} 47. Kd2 {[%emt 0:00:00]} Bg6 {[%emt 0:00:
00]} 48. Kd1 {[%emt 0:00:00]} Bd3 {[%emt 0:01:48]} 49. Nd2 {[%emt 0:00:00]} Ba5
{[%emt 0:04:03]} 50. Ne4 {[%emt 0:00:00]} Bxe4 {[%emt 0:00:22]} 51. fxe4 {
[%emt 0:00:00]} Ke6 {[%emt 0:00:11]} 52. Kc2 {[%emt 0:00:00]} Bc7 {[%emt 0:00:
00]} 53. Kd3 {[%emt 0:00:00]} Bxe5 {[%emt 0:00:14]} 54. Be1 {[%emt 0:00:00]} g4
{[%emt 0:05:46]} 55. hxg4 {[%emt 0:00:00]} Bc7 {[%emt 0:01:27]} 56. Ke2 {
[%emt 0:00:00]} Bd6 {[%emt 0:01:32]} 57. Kf3 {[%emt 0:00:10]} Kf6 {[%emt 0:00:
00]} 58. Bd2 {[%emt 0:01:46]} Ke6 {[%emt 0:01:36]} 59. Be1 {[%emt 0:01:44]} Kd7
{[%emt 0:00:29]} 60. Ke2 {[%emt 0:00:37]} Bf4 {[%emt 0:00:45]} 61. Kd3 {
[%emt 0:00:35]} Kc6 {[%emt 0:00:39]} 62. Ba5 {[%emt 0:02:08]} Kd7 {[%emt 0:00:
00]} 63. Bb6 {[%emt 0:00:26]} Bd6 {[%emt 0:00:08]} 64. Ba5 {[%emt 0:01:32]} Ke6
{[%emt 0:01:07]} 65. Be1 {[%emt 0:00:19]} Bf4 {[%emt 0:00:18]} 66. Ba5 {
[%emt 0:00:45]} Kf6 {[%emt 0:00:19]} 67. Bd8+ {[%emt 0:00:10]} Ke6 {[%emt 0:00:
00]} 68. Bb6 {[%emt 0:00:18]} Bd6 {[%emt 0:00:01]} 69. Ba5 {[%emt 0:00:16]} Kf6
{[%emt 0:00:16]} 70. Bd2 {[%emt 0:00:15]} Bg3 {[%emt 0:00:28]} 71. Ke2 {
[%emt 0:00:33]} Kg6 {[%emt 0:00:31]} 72. Kf3 {[%emt 0:00:21]} Bc7 {[%emt 0:00:
00]} 73. Ke2 {[%emt 0:00:22]} Kf6 {[%emt 0:00:51]} 74. Kf3 {[%emt 0:00:13]} g6
{[%emt 0:00:09]} 75. Be1 {[%emt 0:01:33]} Ke6 {[%emt 0:00:16]} 76. Ke2 {
[%emt 0:00:25]} f5 {[%emt 0:00:30]} 77. gxf5+ {[%emt 0:00:45]} gxf5 {[%emt 0:
00:00]} 78. exf5+ {[%emt 0:00:17]} Kxf5 {[%emt 0:00:04]} 79. Kf3 {[%emt 0:00:
00]} Bf4 {[%emt 0:01:05]} 80. Ba5 {[%emt 0:01:31]} Bc1 {[%emt 0:01:01]} 81. g4+
{[%emt 0:00:23]} Kg6 {[%emt 0:00:18]} 82. Bb6 {[%emt 0:00:31]} Ba3 {[%emt 0:00:
00]} 83. Bd8 {[%emt 0:00:28]} Bb4 {[%emt 0:00:23]} 84. Ke4 {[%emt 0:00:09]} Ba3
{[%emt 0:00:18]} 85. Be7 {[%emt 0:01:48]} Bb4 {[%emt 0:00:13]} 86. Kd3 {
[%emt 0:00:12]} Kf7 {[%emt 0:00:15]} 87. Bg5 {[%emt 0:00:47]} Kg6 {[%emt 0:00:
00]} 88. Bc1 {[%emt 0:00:13]} Kf6 {[%emt 0:00:38]} 89. Ke4 {[%emt 0:00:07]} Kg6
{[%emt 0:00:19]} 90. Kd3 {[%emt 0:02:16]} Kf6 {[%emt 0:00:18]} 91. Ke4 {
[%emt 0:04:12]} Kg6 {[%emt 0:00:09]} 92. g5 {[%emt 0:01:27]} Kf7 {[%emt 0:00:
00]} 1/2-1/2

[Event "44th Chess Olympiad Open 2022"]
[Site "Chennai"]
[Date "2022.08.08"]
[Round "10.61"]
[White "Wu, Bing-Shen"]
[Black "Hassan, Tarek Ahmed"]
[Result "1-0"]
[WhiteElo "1660"]
[BlackElo "2209"]
[Annotator "NA RC"]
[PlyCount "75"]
[EventDate "2022.??.??"]
[TimeControl "60"]

1. c4 {[%emt 0:00:18]} b6 {[%emt 0:00:35]} 2. Nc3 {[%emt 0:00:43]} e6 {[%emt 0:
00:00]} 3. e4 {[%emt 0:00:27]} Bb7 {[%emt 0:00:11]} 4. Nge2 {[%emt 0:00:11]}
Nf6 {[%emt 0:07:13]} 5. d3 {[%emt 0:00:46]} Be7 {[%emt 0:05:22]} 6. g3 {
[%emt 0:04:14]} d5 {[%emt 0:02:32]} 7. cxd5 {[%emt 0:00:15]} exd5 {[%emt 0:00:
00]} 8. Bg2 {[%emt 0:00:29]} dxe4 {[%emt 0:03:43]} 9. O-O {[%emt 0:00:25]} O-O
{[%emt 0:08:52]} 10. dxe4 {[%emt 0:00:18]} Nc6 {[%emt 0:01:19]} 11. Nd5 {
[%emt 0:06:10]} Nxd5 {[%emt 0:06:22]} 12. exd5 {[%emt 0:00:43]} Na5 {[%emt 0:
00:00]} 13. Bf4 {[%emt 0:18:05]} Bd6 {[%emt 0:02:09]} 14. Rc1 {[%emt 0:04:46]}
Ba6 {[%emt 0:03:00]} 15. Bxd6 {[%emt 0:02:32]} Qxd6 {[%emt 0:04:15]} 16. Re1 {
[%emt 0:02:03]} Nb7 {[%emt 0:11:21]} 17. Nd4 {[%emt 0:05:49]} Nc5 {[%emt 0:00:
00]} 18. Rc3 {[%emt 0:14:27]} Rae8 {[%emt 0:02:22]} 19. Rce3 {[%emt 0:01:31]}
Rxe3 {[%emt 0:00:50]} 20. Rxe3 {[%emt 0:01:29]} g6 {[%emt 0:07:50]} 21. Nc6 {
[%emt 0:10:07]} Bb7 {[%emt 0:04:07]} 22. Ne7+ {[%emt 0:07:47]} Kg7 {[%emt 0:00:
00]} 23. h4 {[%emt 0:11:17]} Nd7 {[%emt 0:04:17]} 24. Qg4 {[%emt 0:02:09]} f5 {
[%emt 0:01:56]} 25. Qd4+ {[%emt 0:05:04]} Qf6 {[%emt 0:00:05]} 26. Qf4 {
[%emt 0:00:40]} Qd6 {[%emt 0:02:02]} 27. Qd4+ {[%emt 0:00:14]} Nf6 {[%emt 0:00:
00]} 28. Re6 {[%emt 0:00:14]} Qd8 {[%emt 0:05:23]} 29. h5 {[%emt 0:00:41]} Rf7
{[%emt 0:07:10]} 30. Qe5 {[%emt 0:00:36]} a5 {[%emt 0:02:23]} 31. hxg6 {
[%emt 0:00:56]} hxg6 {[%emt 0:00:18]} 32. a3 {[%emt 0:00:31]} a4 {[%emt 0:00:
00]} 33. g4 {[%emt 0:00:02]} Bc8 {[%emt 0:01:40]} 34. Nxc8 {[%emt 0:00:31]} Kh6
{[%emt 0:02:46]} 35. gxf5 {[%emt 0:00:45]} gxf5 {[%emt 0:00:29]} 36. Ne7 {
[%emt 0:00:30]} Kh7 {[%emt 0:00:34]} 37. Rxf6 {[%emt 0:00:18]} Rxe7 {[%emt 0:
00:00]} 38. Qxf5+ {[%emt 0:00:07]} 1-0

[Event "44th Chess Olympiad Open 2022"]
[Site "Chennai"]
[Date "2022.08.08"]
[Round "10.62"]
[White "Isaakidis, Alexandros"]
[Black "Ali Abdullahi, Farah"]
[Result "1-0"]
[WhiteElo "2165"]
[BlackElo "1892"]
[Annotator "NA RC"]
[PlyCount "55"]
[EventDate "2022.??.??"]
[TimeControl "60"]

1. e4 {[%emt 0:00:13]} b6 {[%emt 0:00:38]} 2. d4 {[%emt 0:00:41]} e6 {[%emt 0:
00:00]} 3. Nf3 {[%emt 0:00:35]} Bb7 {[%emt 0:00:04]} 4. Bd3 {[%emt 0:00:22]}
Nf6 {[%emt 0:00:48]} 5. e5 {[%emt 0:00:52]} Nd5 {[%emt 0:01:36]} 6. O-O {
[%emt 0:03:34]} c5 {[%emt 0:03:32]} 7. dxc5 {[%emt 0:04:57]} Bxc5 {[%emt 0:00:
00]} 8. a3 {[%emt 0:00:12]} Be7 {[%emt 0:03:01]} 9. Be4 {[%emt 0:23:03]} Qc8 {
[%emt 0:01:34]} 10. Nd4 {[%emt 0:07:37]} a6 {[%emt 0:03:04]} 11. Nf5 {[%emt 0:
00:00]} exf5 {[%emt 0:04:46]} 12. Bxd5 {[%emt 0:00:13]} Bxd5 {[%emt 0:01:01]}
13. Qxd5 {[%emt 0:00:05]} Qc6 {[%emt 0:00:33]} 14. Qd3 {[%emt 0:01:16]} Qe6 {
[%emt 0:02:43]} 15. Nc3 {[%emt 0:02:22]} O-O {[%emt 0:05:06]} 16. Nd5 {[%emt 0:
00:00]} Bd8 {[%emt 0:01:18]} 17. Re1 {[%emt 0:02:26]} Nc6 {[%emt 0:01:17]} 18.
Nf4 {[%emt 0:00:30]} Qe7 {[%emt 0:02:31]} 19. Bd2 {[%emt 0:08:35]} Qc5 {
[%emt 0:06:48]} 20. Bc3 {[%emt 0:01:45]} Bc7 {[%emt 0:03:38]} 21. Nd5 {[%emt 0:
00:00]} Bd8 {[%emt 0:05:43]} 22. Rad1 {[%emt 0:01:16]} Re8 {[%emt 0:02:52]} 23.
Qxf5 {[%emt 0:04:22]} Ra7 {[%emt 0:02:53]} 24. Nf6+ {[%emt 0:17:36]} Bxf6 {
[%emt 0:02:03]} 25. exf6 {[%emt 0:00:11]} Re6 {[%emt 0:01:46]} 26. Rxe6 {
[%emt 0:01:08]} dxe6 {[%emt 0:00:36]} 27. Qf3 {[%emt 0:03:40]} g6 {[%emt 0:00:
00]} 28. Qxc6 {[%emt 0:00:31]} 1-0

[Event "44th Chess Olympiad Open 2022"]
[Site "Chennai"]
[Date "2022.08.08"]
[Round "10.62"]
[White "Abdirahman Omar Sheikh"]
[Black "Michaelides, Konstantinos"]
[Result "0-1"]
[WhiteElo "2051"]
[BlackElo "2300"]
[Annotator "RC"]
[PlyCount "75"]
[EventDate "2022.??.??"]
[TimeControl "60"]

1. d4 {[%emt 0:00:14]} Nf6 {[%emt 0:00:17]} 2. Bf4 {[%emt 0:01:26]} e6 {
[%emt 0:00:32]} 3. Nf3 {[%emt 0:00:59]} c5 {[%emt 0:06:25]} 4. e3 {[%emt 0:00:
00]} d5 {[%emt 0:01:36]} 5. Bb5+ {[%emt 0:00:29]} Bd7 {[%emt 0:01:34]} 6. Bxd7+
{[%emt 0:00:29]} Nbxd7 {[%emt 0:00:51]} 7. O-O {[%emt 0:00:11]} Be7 {[%emt 0:
00:00]} 8. c4 {[%emt 0:03:25]} cxd4 {[%emt 0:05:21]} 9. Qxd4 {[%emt 0:04:54]}
O-O {[%emt 0:01:09]} 10. cxd5 {[%emt 0:02:08]} Nxd5 {[%emt 0:01:24]} 11. Nc3 {
[%emt 0:01:46]} Bf6 {[%emt 0:05:59]} 12. Ne5 {[%emt 0:03:12]} Nxf4 {[%emt 0:00:
00]} 13. Qxd7 {[%emt 0:00:41]} Bxe5 {[%emt 0:01:27]} 14. Qxd8 {[%emt 0:00:13]}
Rfxd8 {[%emt 0:00:23]} 15. exf4 {[%emt 0:00:05]} Bxf4 {[%emt 0:01:06]} 16. Rfd1
{[%emt 0:00:24]} Be5 {[%emt 0:02:34]} 17. Rxd8+ {[%emt 0:00:50]} Rxd8 {[%emt 0:
00:00]} 18. Rd1 {[%emt 0:00:07]} Rxd1+ {[%emt 0:00:58]} 19. Nxd1 {[%emt 0:00:
00]} Bd4 {[%emt 0:00:12]} 20. Kf1 {[%emt 0:00:20]} e5 {[%emt 0:06:12]} 21. Ke2
{[%emt 0:00:21]} Kf8 {[%emt 0:01:26]} 22. Kd3 {[%emt 0:00:56]} Ke7 {[%emt 0:00:
00]} 23. Kc4 {[%emt 0:01:32]} Kd6 {[%emt 0:00:55]} 24. Kd3 {[%emt 0:08:45]} Kd5
{[%emt 0:00:19]} 25. Kd2 {[%emt 0:00:23]} f5 {[%emt 0:01:45]} 26. Kd3 {[%emt 0:
00:00]} a5 {[%emt 0:05:42]} 27. Ke2 {[%emt 0:18:30]} a4 {[%emt 0:05:46]} 28. h3
{[%emt 0:05:28]} Kc4 {[%emt 0:04:54]} 29. Kd2 {[%emt 0:00:44]} e4 {[%emt 0:00:
00]} 30. Ke2 {[%emt 0:15:09]} f4 {[%emt 0:04:51]} 31. Kd2 {[%emt 0:06:53]} g5 {
[%emt 0:02:00]} 32. g4 {[%emt 0:06:58]} fxg3 {[%emt 0:05:46]} 33. fxg3 {
[%emt 0:00:02]} h5 {[%emt 0:00:42]} 34. Ke2 {[%emt 0:07:05]} Kd5 {[%emt 0:00:
00]} 35. Kd2 {[%emt 0:03:21]} Ke5 {[%emt 0:01:16]} 36. Ke2 {[%emt 0:01:28]} h4
{[%emt 0:00:13]} 37. gxh4 {[%emt 0:00:38]} gxh4 {[%emt 0:00:02]} 38. a3 {
[%emt 0:00:43]} 0-1

[Event "44th Chess Olympiad Open 2022"]
[Site "Chennai"]
[Date "2022.08.08"]
[Round "10.62"]
[White "Abdulkadir Mohamed Warsame"]
[Black "Florentiades, Michalis"]
[Result "0-1"]
[WhiteElo "1820"]
[BlackElo "1974"]
[Annotator "NA RC"]
[PlyCount "94"]
[EventDate "2022.??.??"]
[TimeControl "60"]

1. c4 {[%emt 0:00:17]} f5 {[%emt 0:00:10]} 2. Nc3 {[%emt 0:01:18]} Nf6 {
[%emt 0:00:25]} 3. Nf3 {[%emt 0:03:11]} d6 {[%emt 0:01:10]} 4. d4 {[%emt 0:00:
00]} e6 {[%emt 0:00:23]} 5. g3 {[%emt 0:02:09]} Be7 {[%emt 0:00:30]} 6. Bg2 {
[%emt 0:01:05]} O-O {[%emt 0:00:16]} 7. O-O {[%emt 0:01:02]} Ne4 {[%emt 0:00:
00]} 8. Qc2 {[%emt 0:01:00]} Nxc3 {[%emt 0:00:22]} 9. bxc3 {[%emt 0:02:44]} Nc6
{[%emt 0:03:10]} 10. d5 {[%emt 0:03:12]} Na5 {[%emt 0:02:37]} 11. Qa4 {[%emt 0:
00:00]} b6 {[%emt 0:01:30]} 12. Rd1 {[%emt 0:21:47]} Bd7 {[%emt 0:07:16]} 13.
Qc2 {[%emt 0:04:02]} e5 {[%emt 0:01:06]} 14. Nd2 {[%emt 0:03:14]} Qe8 {[%emt 0:
00:00]} 15. a4 {[%emt 0:02:27]} Nb7 {[%emt 0:02:16]} 16. Qa2 {[%emt 0:01:51]}
a5 {[%emt 0:05:45]} 17. Nb3 {[%emt 0:00:44]} Rb8 {[%emt 0:05:58]} 18. Re1 {
[%emt 0:05:20]} Bf6 {[%emt 0:05:10]} 19. Bd2 {[%emt 0:04:26]} g5 {[%emt 0:00:
00]} 20. e4 {[%emt 0:06:25]} f4 {[%emt 0:02:52]} 21. gxf4 {[%emt 0:11:17]} gxf4
{[%emt 0:01:56]} 22. Kh1 {[%emt 0:02:58]} Bh4 {[%emt 0:05:47]} 23. Bf3 {
[%emt 0:04:14]} Bxf2 {[%emt 0:03:31]} 24. Re2 {[%emt 0:00:17]} Bh4 {[%emt 0:00:
00]} 25. Rg2+ {[%emt 0:02:08]} Kh8 {[%emt 0:00:11]} 26. Rag1 {[%emt 0:02:00]}
Bf6 {[%emt 0:00:41]} 27. Bg4 {[%emt 0:02:25]} Bxg4 {[%emt 0:02:19]} 28. Rxg4 {
[%emt 0:00:01]} Qf7 {[%emt 0:00:15]} 29. Be1 {[%emt 0:00:51]} Rg8 {[%emt 0:00:
00]} 30. Qg2 {[%emt 0:02:31]} Rxg4 {[%emt 0:00:24]} 31. Qxg4 {[%emt 0:00:00]}
Rg8 {[%emt 0:00:12]} 32. Qxg8+ {[%emt 0:01:51]} Qxg8 {[%emt 0:00:05]} 33. Rxg8+
{[%emt 0:00:03]} Kxg8 {[%emt 0:00:11]} 34. Kg2 {[%emt 0:00:31]} Kg7 {[%emt 0:
00:00]} 35. Kf3 {[%emt 0:00:03]} Kg6 {[%emt 0:00:15]} 36. Bf2 {[%emt 0:01:36]}
Kh5 {[%emt 0:01:27]} 37. Nc1 {[%emt 0:02:42]} Bh4 {[%emt 0:01:34]} 38. Bg1 {
[%emt 0:00:18]} Nd8 {[%emt 0:00:38]} 39. Nd3 {[%emt 0:00:50]} Nf7 {[%emt 0:00:
00]} 40. Nxf4+ {[%emt 0:00:42]} exf4 {[%emt 0:00:21]} 41. Kxf4 {[%emt 0:30:11]}
Kg6 {[%emt 0:31:06]} 42. Bd4 {[%emt 0:00:00]} Bf6 {[%emt 0:00:00]} 43. h3 {
[%emt 0:00:00]} Ne5 {[%emt 0:00:00]} 44. h4 {[%emt 0:00:00]} h5 {[%emt 0:00:00]
} 45. c5 {[%emt 0:00:00]} bxc5 {[%emt 0:00:00]} 46. Be3 {[%emt 0:00:00]} Bxh4 {
[%emt 0:00:00]} 47. Bxc5 {[%emt 0:00:00]} Nd3+ {[%emt 0:00:00]} 0-1

[Event "44th Chess Olympiad Open 2022"]
[Site "Chennai"]
[Date "2022.08.08"]
[Round "10.62"]
[White "Antoniou, Rafail"]
[Black "Nor, Mohamed Ahmed"]
[Result "1-0"]
[WhiteElo "1817"]
[BlackElo "1907"]
[Annotator "NA RC"]
[PlyCount "83"]
[EventDate "2022.??.??"]
[TimeControl "60"]

1. e4 {[%emt 0:00:11]} c5 {[%emt 0:00:15]} 2. c3 {[%emt 0:00:18]} d6 {[%emt 0:
00:00]} 3. d4 {[%emt 0:01:20]} cxd4 {[%emt 0:00:32]} 4. cxd4 {[%emt 0:00:05]}
Nf6 {[%emt 0:00:30]} 5. Nc3 {[%emt 0:01:07]} g6 {[%emt 0:00:20]} 6. Be3 {
[%emt 0:02:00]} Bg7 {[%emt 0:00:26]} 7. f3 {[%emt 0:02:36]} a6 {[%emt 0:00:22]}
8. Qd2 {[%emt 0:01:13]} Nc6 {[%emt 0:01:21]} 9. h4 {[%emt 0:01:33]} b5 {
[%emt 0:02:02]} 10. O-O-O {[%emt 0:03:21]} Bd7 {[%emt 0:01:01]} 11. g4 {
[%emt 0:03:47]} Qc7 {[%emt 0:00:36]} 12. Kb1 {[%emt 0:00:06]} O-O-O {[%emt 0:
00:00]} 13. Rc1 {[%emt 0:00:45]} Kb7 {[%emt 0:02:41]} 14. d5 {[%emt 0:01:10]}
e5 {[%emt 0:13:11]} 15. dxc6+ {[%emt 0:00:59]} Bxc6 {[%emt 0:00:19]} 16. Nxb5 {
[%emt 0:00:47]} axb5 {[%emt 0:03:59]} 17. Bxb5 {[%emt 0:00:16]} Bxb5 {[%emt 0:
00:00]} 18. Rxc7+ {[%emt 0:00:05]} Kxc7 {[%emt 0:00:20]} 19. Qa5+ {[%emt 0:00:
00]} Kd7 {[%emt 0:00:42]} 20. Qxb5+ {[%emt 0:00:14]} Ke7 {[%emt 0:00:13]} 21.
Ne2 {[%emt 0:00:22]} Rb8 {[%emt 0:00:32]} 22. Qd3 {[%emt 0:00:40]} Rb7 {
[%emt 0:00:41]} 23. Rd1 {[%emt 0:00:25]} Rd8 {[%emt 0:00:53]} 24. Nc3 {[%emt 0:
00:00]} Kf8 {[%emt 0:01:13]} 25. Qa6 {[%emt 0:03:09]} Rdb8 {[%emt 0:09:39]} 26.
Qxd6+ {[%emt 0:00:05]} Kg8 {[%emt 0:00:18]} 27. Rd2 {[%emt 0:04:48]} Ne8 {
[%emt 0:01:09]} 28. Qd3 {[%emt 0:00:58]} Bf8 {[%emt 0:00:28]} 29. Nd5 {[%emt 0:
00:00]} Kg7 {[%emt 0:01:09]} 30. h5 {[%emt 0:00:14]} gxh5 {[%emt 0:00:53]} 31.
gxh5 {[%emt 0:00:09]} h6 {[%emt 0:00:29]} 32. Rg2+ {[%emt 0:00:12]} Kh7 {
[%emt 0:00:12]} 33. f4 {[%emt 0:01:32]} f6 {[%emt 0:01:55]} 34. fxe5 {[%emt 0:
00:00]} fxe5 {[%emt 0:00:31]} 35. Qa6 {[%emt 0:00:28]} Bg7 {[%emt 0:04:41]} 36.
Qg6+ {[%emt 0:00:11]} Kg8 {[%emt 0:02:30]} 37. Bxh6 {[%emt 0:00:33]} Rf7 {
[%emt 0:01:20]} 38. Bxg7 {[%emt 0:00:57]} Rxg7 {[%emt 0:13:39]} 39. Qxg7+ {
[%emt 0:00:58]} Nxg7 {[%emt 0:00:23]} 40. h6 {[%emt 0:00:02]} Rf8 {[%emt 0:00:
00]} 41. Ne7+ {[%emt 0:31:35]} Kf7 {[%emt 0:46:00]} 42. hxg7 {[%emt 0:03:26]}
1-0

[Event "44th Chess Olympiad Open 2022"]
[Site "Chennai"]
[Date "2022.08.08"]
[Round "10.63"]
[White "Rakotomaharo, Fy Antenaina"]
[Black "Hasford, John Kojo"]
[Result "1-0"]
[WhiteElo "2490"]
[BlackElo "1976"]
[Annotator "RC"]
[PlyCount "65"]
[EventDate "2022.??.??"]
[TimeControl "60"]

1. e4 {[%emt 0:00:06]} g6 {[%emt 0:01:47]} 2. d4 {[%emt 0:00:17]} d6 {[%emt 0:
00:00]} 3. Nc3 {[%emt 0:00:39]} Bg7 {[%emt 0:00:36]} 4. Be3 {[%emt 0:00:27]}
Nf6 {[%emt 0:01:11]} 5. Nf3 {[%emt 0:00:15]} a6 {[%emt 0:00:44]} 6. a4 {
[%emt 0:00:27]} Nc6 {[%emt 0:01:58]} 7. Bc4 {[%emt 0:00:14]} O-O {[%emt 0:00:
00]} 8. O-O {[%emt 0:00:41]} e5 {[%emt 0:00:26]} 9. dxe5 {[%emt 0:12:54]} Nxe5
{[%emt 0:03:07]} 10. Nxe5 {[%emt 0:00:11]} dxe5 {[%emt 0:00:06]} 11. a5 {
[%emt 0:06:01]} Qe7 {[%emt 0:05:09]} 12. Qe2 {[%emt 0:02:46]} Be6 {[%emt 0:00:
00]} 13. Ra3 {[%emt 0:00:10]} Rad8 {[%emt 0:04:33]} 14. Rb3 {[%emt 0:03:26]}
Bc8 {[%emt 0:04:18]} 15. f3 {[%emt 0:00:06]} c6 {[%emt 0:06:00]} 16. Bb6 {
[%emt 0:11:54]} Rde8 {[%emt 0:07:01]} 17. Na4 {[%emt 0:00:29]} Nd7 {[%emt 0:00:
00]} 18. Be3 {[%emt 0:00:05]} Kh8 {[%emt 0:00:59]} 19. Rd1 {[%emt 0:01:44]} f5
{[%emt 0:01:19]} 20. Rbd3 {[%emt 0:00:00]} fxe4 {[%emt 0:03:48]} 21. fxe4 {
[%emt 0:01:02]} Qb4 {[%emt 0:02:00]} 22. b3 {[%emt 0:03:32]} Qxa5 {[%emt 0:00:
00]} 23. Rxd7 {[%emt 0:00:16]} Bxd7 {[%emt 0:03:34]} 24. Rxd7 {[%emt 0:00:03]}
b5 {[%emt 0:00:50]} 25. Bd2 {[%emt 0:00:25]} b4 {[%emt 0:01:49]} 26. Be3 {
[%emt 0:07:19]} Rb8 {[%emt 0:01:19]} 27. Ba7 {[%emt 0:00:30]} Rb5 {[%emt 0:00:
00]} 28. Qd2 {[%emt 0:00:13]} Rf6 {[%emt 0:11:36]} 29. Rd8+ {[%emt 0:00:59]}
Rf8 {[%emt 0:07:23]} 30. Rxf8+ {[%emt 0:01:18]} Bxf8 {[%emt 0:02:30]} 31. Qd7 {
[%emt 0:00:06]} Bc5+ {[%emt 0:02:39]} 32. Bxc5 {[%emt 0:00:05]} Rxc5 {[%emt 0:
00:00]} 33. Qe7 {[%emt 0:00:04]} 1-0